[Event "*** SCC Grand Prix: Titled Tuesday Blitz"]
[Site "Chess.com"]
[Date "2020.08.11"]
[Round "3"]
[White "Tsyhanchuk_Stanislav"]
[Black "Isajevsky_Anton"]
[Result "0-1"]
[WhiteElo "2386"]
[BlackElo "2598"]
[TimeControl "180+1"]
[EndTime "10:29:25 PDT"]
[Termination "Isajevsky_Anton won by checkmate"]

1. e4 {[%clk 0:03:00.9]} 1... c5 {[%clk 0:02:59.4]} 2. Nf3 {[%clk 0:03:00.4]}
2... d6 {[%clk 0:02:59.3]} 3. d4 {[%clk 0:03:00.8]} 3... cxd4 {[%clk 0:03:00.2]}
4. Nxd4 {[%clk 0:03:01.4]} 4... Nf6 {[%clk 0:03:00.4]} 5. Nc3 {[%clk 0:03:01.8]}
5... a6 {[%clk 0:03:00.7]} 6. Be3 {[%clk 0:03:01.5]} 6... e5 {[%clk 0:03:00.2]}
7. Nb3 {[%clk 0:03:01.1]} 7... Be6 {[%clk 0:03:00.4]} 8. Qd2 {[%clk 0:03:00.8]}
8... Nbd7 {[%clk 0:02:59.7]} 9. f4 {[%clk 0:03:00.6]} 9... Rc8 {[%clk
0:02:57.9]} 10. O-O-O {[%clk 0:03:00.1]} 10... Be7 {[%clk 0:02:57.5]} 11. h3
{[%clk 0:02:49]} 11... b5 {[%clk 0:02:42.4]} 12. g4 {[%clk 0:02:43.7]} 12... Qc7
{[%clk 0:02:26.6]} 13. Bd3 {[%clk 0:02:31.2]} 13... b4 {[%clk 0:01:43]} 14. Ne2
{[%clk 0:02:26.5]} 14... a5 {[%clk 0:01:30]} 15. g5 {[%clk 0:02:19.3]} 15... Nh5
{[%clk 0:01:28]} 16. f5 {[%clk 0:02:08.6]} 16... Bc4 {[%clk 0:01:27.6]} 17. Kb1
{[%clk 0:01:38.5]} 17... a4 {[%clk 0:01:11.4]} 18. Nbc1 {[%clk 0:01:22.9]} 18...
d5 {[%clk 0:01:09.3]} 19. Bxc4 {[%clk 0:01:02.3]} 19... dxc4 {[%clk 0:01:05.5]}
20. g6 {[%clk 0:01:02.5]} 20... Ndf6 {[%clk 0:00:56.5]} 21. gxf7+ {[%clk
0:00:57.8]} 21... Kxf7 {[%clk 0:00:57.4]} 22. Qe1 {[%clk 0:00:45.3]} 22... Nxe4
{[%clk 0:00:54.3]} 23. Rg1 {[%clk 0:00:41.5]} 23... Rhd8 {[%clk 0:00:51]} 24.
Rxd8 {[%clk 0:00:38.8]} 24... Rxd8 {[%clk 0:00:50.9]} 25. Rg4 {[%clk 0:00:35.8]}
25... Nhf6 {[%clk 0:00:48.6]} 26. Rg1 {[%clk 0:00:33.1]} 26... c3 {[%clk
0:00:46.7]} 27. b3 {[%clk 0:00:29.4]} 27... axb3 {[%clk 0:00:43.4]} 28. Nxb3
{[%clk 0:00:29.4]} 28... Bf8 {[%clk 0:00:34]} 29. Ng3 {[%clk 0:00:25.1]} 29...
Nd6 {[%clk 0:00:27]} 30. Qe2 {[%clk 0:00:22.5]} 30... Nc4 {[%clk 0:00:26.9]} 31.
Bc1 {[%clk 0:00:22]} 31... Qc6 {[%clk 0:00:23.6]} 32. Nh5 {[%clk 0:00:21.1]}
32... Ne4 {[%clk 0:00:18.3]} 33. f6 {[%clk 0:00:17.8]} 33... g6 {[%clk
0:00:17.8]} 34. Ng3 {[%clk 0:00:16.8]} 34... Ned2+ {[%clk 0:00:17]} 35. Bxd2
{[%clk 0:00:16.5]} 35... cxd2 {[%clk 0:00:17]} 36. Rd1 {[%clk 0:00:10]} 36...
Na3+ {[%clk 0:00:16.8]} 37. Ka1 {[%clk 0:00:09.7]} 37... Qc3# {[%clk 0:00:16.3]}
0-1

[Event "*** SCC Grand Prix: Titled Tuesday Blitz"]
[Site "Chess.com"]
[Date "2020.08.11"]
[Round "3"]
[White "Matols"]
[Black "Lion-Al-Messi"]
[Result "0-1"]
[WhiteElo "2208"]
[BlackElo "2500"]
[TimeControl "180+1"]
[EndTime "10:29:28 PDT"]
[Termination "Lion-Al-Messi won on time"]

1. d4 {[%clk 0:03:00.9]} 1... b6 {[%clk 0:03:00.5]} 2. e4 {[%clk 0:02:58]} 2...
Bb7 {[%clk 0:03:01]} 3. Bd3 {[%clk 0:02:57.4]} 3... e6 {[%clk 0:03:01.5]} 4. f3
{[%clk 0:02:57.1]} 4... c5 {[%clk 0:03:01]} 5. c3 {[%clk 0:02:53.6]} 5... Nc6
{[%clk 0:03:00.6]} 6. Ne2 {[%clk 0:02:52.9]} 6... cxd4 {[%clk 0:03:00.9]} 7.
cxd4 {[%clk 0:02:52.6]} 7... Nb4 {[%clk 0:03:01]} 8. O-O {[%clk 0:02:50.8]} 8...
Nxd3 {[%clk 0:03:00.1]} 9. Qxd3 {[%clk 0:02:50.5]} 9... Nf6 {[%clk 0:02:59.9]}
10. Nbc3 {[%clk 0:02:46.3]} 10... Be7 {[%clk 0:02:59.9]} 11. d5 {[%clk 0:02:37]}
11... d6 {[%clk 0:02:57]} 12. dxe6 {[%clk 0:02:27.7]} 12... fxe6 {[%clk
0:02:57]} 13. Nf4 {[%clk 0:02:27.7]} 13... Qd7 {[%clk 0:02:55]} 14. Be3 {[%clk
0:02:24.3]} 14... Rc8 {[%clk 0:02:52]} 15. Rad1 {[%clk 0:02:23.2]} 15... O-O
{[%clk 0:02:47.5]} 16. e5 {[%clk 0:02:06.6]} 16... Nd5 {[%clk 0:02:40.3]} 17.
Nfxd5 {[%clk 0:02:04.7]} 17... exd5 {[%clk 0:02:38.9]} 18. exd6 {[%clk
0:01:54.2]} 18... Bxd6 {[%clk 0:02:26.4]} 19. Nxd5 {[%clk 0:01:54]} 19... Kh8
{[%clk 0:02:26.6]} 20. Rfe1 {[%clk 0:01:49.8]} 20... Bb8 {[%clk 0:02:15.8]} 21.
Qd4 {[%clk 0:01:03.2]} 21... Rcd8 {[%clk 0:01:41.2]} 22. Nc3 {[%clk 0:00:48.9]}
22... Qc7 {[%clk 0:01:31]} 23. Qh4 {[%clk 0:00:48.5]} 23... Rde8 {[%clk
0:01:25.3]} 24. Bd4 {[%clk 0:00:46.9]} 24... Qf7 {[%clk 0:01:08.6]} 25. a3
{[%clk 0:00:43.4]} 25... Qg6 {[%clk 0:01:03.1]} 26. Ne4 {[%clk 0:00:36.8]} 26...
Rxf3 {[%clk 0:00:39.7]} 27. Ng5 {[%clk 0:00:27.2]} 27... Rff8 {[%clk 0:00:35.3]}
28. Rxe8 {[%clk 0:00:11.5]} 28... Rxe8 {[%clk 0:00:36.2]} 29. Rf1 {[%clk
0:00:09.8]} 29... h6 {[%clk 0:00:19.5]} 30. Nf7+ {[%clk 0:00:09.6]} 30... Kg8
{[%clk 0:00:20]} 31. Qh3 {[%clk 0:00:06.5]} 31... Re2 {[%clk 0:00:10]} 0-1

[Event "*** SCC Grand Prix: Titled Tuesday Blitz"]
[Site "Chess.com"]
[Date "2020.08.11"]
[Round "3"]
[White "TurboSteen"]
[Black "MartinMatthiesen"]
[Result "1-0"]
[WhiteElo "2019"]
[BlackElo "2442"]
[TimeControl "180+1"]
[EndTime "10:29:28 PDT"]
[Termination "TurboSteen won on time"]

1. e4 {[%clk 0:02:52.3]} 1... c5 {[%clk 0:02:20.2]} 2. Nc3 {[%clk 0:02:49.5]}
2... Nc6 {[%clk 0:02:19.7]} 3. Bb5 {[%clk 0:02:47]} 3... Nd4 {[%clk 0:02:18.9]}
4. Nf3 {[%clk 0:02:45]} 4... Nxb5 {[%clk 0:02:17]} 5. Nxb5 {[%clk 0:02:42.4]}
5... d6 {[%clk 0:02:14.1]} 6. d4 {[%clk 0:02:39.9]} 6... a6 {[%clk 0:02:13.5]}
7. Nc3 {[%clk 0:02:38.3]} 7... cxd4 {[%clk 0:02:13.1]} 8. Qxd4 {[%clk
0:02:35.4]} 8... e5 {[%clk 0:02:12.8]} 9. Qb4 {[%clk 0:02:32.7]} 9... Nf6 {[%clk
0:01:18.5]} 10. Bg5 {[%clk 0:02:30.1]} 10... Be7 {[%clk 0:01:07.5]} 11. O-O-O
{[%clk 0:02:27.9]} 11... a5 {[%clk 0:00:44.5]} 12. Qb5+ {[%clk 0:02:08.4]} 12...
Bd7 {[%clk 0:00:43]} 13. Qxb7 {[%clk 0:02:04.1]} 13... Rb8 {[%clk 0:00:40.3]}
14. Qa7 {[%clk 0:01:57.1]} 14... Ra8 {[%clk 0:00:33.5]} 15. Qb7 {[%clk
0:01:52.8]} 15... Rb8 {[%clk 0:00:32.7]} 16. Qa7 {[%clk 0:01:52.7]} 16... Ra8
{[%clk 0:00:31.8]} 17. Qe3 {[%clk 0:01:51.8]} 17... Ng4 {[%clk 0:00:23.6]} 18.
Qd2 {[%clk 0:01:39.1]} 18... Bxg5 {[%clk 0:00:22.5]} 19. Nxg5 {[%clk 0:01:37.5]}
19... Nxf2 {[%clk 0:00:22.6]} 20. Nxf7 {[%clk 0:01:28.4]} 20... Kxf7 {[%clk
0:00:18.3]} 21. Qxf2+ {[%clk 0:01:26.1]} 21... Qf6 {[%clk 0:00:17.5]} 22. Qxf6+
{[%clk 0:01:23.6]} 22... gxf6 {[%clk 0:00:17.5]} 23. Rxd6 {[%clk 0:01:22.1]}
23... Be6 {[%clk 0:00:17.6]} 24. Nd5 {[%clk 0:01:17.8]} 24... Bxd5 {[%clk
0:00:17.2]} 25. exd5 {[%clk 0:01:16.7]} 25... Rhd8 {[%clk 0:00:16.2]} 26. Rxd8
{[%clk 0:01:14.4]} 26... Rxd8 {[%clk 0:00:17.1]} 27. c4 {[%clk 0:01:13.1]} 27...
f5 {[%clk 0:00:15.1]} 28. Rd1 {[%clk 0:01:09.4]} 28... Kf6 {[%clk 0:00:14.5]}
29. c5 {[%clk 0:01:08.5]} 29... e4 {[%clk 0:00:14.7]} 30. c6 {[%clk 0:01:07.8]}
30... Rc8 {[%clk 0:00:11.5]} 31. b3 {[%clk 0:01:01.5]} 31... Ke5 {[%clk
0:00:10.3]} 32. a3 {[%clk 0:00:58.8]} 32... Kd6 {[%clk 0:00:10.5]} 33. b4 {[%clk
0:00:57.5]} 33... axb4 {[%clk 0:00:10.3]} 34. axb4 {[%clk 0:00:56.9]} 34... Rb8
{[%clk 0:00:10.6]} 35. Rd4 {[%clk 0:00:51.6]} 35... e3 {[%clk 0:00:09.2]} 36.
Kc2 {[%clk 0:00:42.1]} 36... Ke5 {[%clk 0:00:07.3]} 37. c7 {[%clk 0:00:34.3]}
37... Rc8 {[%clk 0:00:06.1]} 38. d6 {[%clk 0:00:33.5]} 38... Kxd4 {[%clk
0:00:05.1]} 39. Kd1 {[%clk 0:00:25.4]} 1-0

[Event "*** SCC Grand Prix: Titled Tuesday Blitz"]
[Site "Chess.com"]
[Date "2020.08.11"]
[Round "3"]
[White "Grischuk"]
[Black "BeanScreen"]
[Result "1-0"]
[WhiteElo "3035"]
[BlackElo "2713"]
[TimeControl "180+1"]
[EndTime "10:29:30 PDT"]
[Termination "Grischuk won by resignation"]

1. Nf3 {[%clk 0:03:00.9]} 1... d5 {[%clk 0:02:59.6]} 2. d4 {[%clk 0:03:00.9]}
2... Nf6 {[%clk 0:03:00.5]} 3. c4 {[%clk 0:03:01.2]} 3... dxc4 {[%clk
0:03:01.4]} 4. e3 {[%clk 0:03:00.5]} 4... a6 {[%clk 0:03:01.8]} 5. Bxc4 {[%clk
0:03:00.4]} 5... e6 {[%clk 0:03:02.7]} 6. O-O {[%clk 0:03:00.1]} 6... c5 {[%clk
0:03:03.6]} 7. dxc5 {[%clk 0:02:50.1]} 7... Bxc5 {[%clk 0:03:04.5]} 8. Qxd8+
{[%clk 0:02:49.8]} 8... Kxd8 {[%clk 0:03:05.4]} 9. Be2 {[%clk 0:02:45.5]} 9...
Nbd7 {[%clk 0:03:02.7]} 10. Nc3 {[%clk 0:02:26.3]} 10... b6 {[%clk 0:02:58.9]}
11. Ng5 {[%clk 0:02:14.1]} 11... Ke7 {[%clk 0:02:58.8]} 12. Nge4 {[%clk
0:02:14]} 12... Bb7 {[%clk 0:02:54.2]} 13. Nxc5 {[%clk 0:02:13.7]} 13... Nxc5
{[%clk 0:02:55.1]} 14. b3 {[%clk 0:02:07.8]} 14... Rac8 {[%clk 0:02:53.8]} 15.
Ba3 {[%clk 0:02:07.6]} 15... a5 {[%clk 0:02:51.3]} 16. Na4 {[%clk 0:01:55]}
16... Nd7 {[%clk 0:02:51.5]} 17. Rac1 {[%clk 0:01:55.3]} 17... Rc6 {[%clk
0:01:37.9]} 18. Bb5 {[%clk 0:01:16.5]} 18... Rd6 {[%clk 0:01:30.1]} 19. Bxd7
{[%clk 0:01:16.8]} 19... Kxd7 {[%clk 0:01:21.6]} 20. Bxc5 {[%clk 0:01:16.2]}
20... bxc5 {[%clk 0:01:22.1]} 21. Nxc5+ {[%clk 0:01:17.1]} 21... Kc7 {[%clk
0:01:22.6]} 22. Nxe6+ {[%clk 0:01:14.8]} 22... Kb8 {[%clk 0:01:21.7]} 23. Nd4
{[%clk 0:01:13.9]} 23... Rc8 {[%clk 0:01:19.3]} 24. Rxc8+ {[%clk 0:01:13.4]}
24... Kxc8 {[%clk 0:01:20.2]} 25. Rc1+ {[%clk 0:01:13.9]} 25... Kb8 {[%clk
0:01:20.6]} 26. Rc5 {[%clk 0:01:04.7]} 26... a4 {[%clk 0:01:17.5]} 27. bxa4
{[%clk 0:01:04.2]} 27... Rb6 {[%clk 0:01:17.3]} 28. Rb5 {[%clk 0:01:03.5]} 28...
Rg6 {[%clk 0:01:14.8]} 29. f3 {[%clk 0:01:03.5]} 29... Ka7 {[%clk 0:01:12.9]}
30. Kf2 {[%clk 0:01:03.1]} 30... Rh6 {[%clk 0:01:12]} 31. h3 {[%clk 0:01:03]}
31... Rd6 {[%clk 0:01:06.8]} 32. a5 {[%clk 0:00:58]} 32... g6 {[%clk 0:01:06.1]}
33. g4 {[%clk 0:00:56.7]} 33... Rd5 {[%clk 0:01:06.3]} 34. Rxd5 {[%clk
0:00:55.6]} 34... Bxd5 {[%clk 0:01:07.2]} 35. Nb5+ {[%clk 0:00:54.1]} 35... Kb7
{[%clk 0:01:05.8]} 36. a3 {[%clk 0:00:52.2]} 36... Kc6 {[%clk 0:00:59.1]} 37.
Nc3 {[%clk 0:00:48]} 37... Be6 {[%clk 0:00:58.8]} 38. e4 {[%clk 0:00:46.9]}
38... Kb7 {[%clk 0:00:58.6]} 39. Nb5 {[%clk 0:00:43.2]} 39... Ba2 {[%clk
0:00:51.8]} 40. Nc3 {[%clk 0:00:36.8]} 40... Be6 {[%clk 0:00:51.1]} 41. Nd5
{[%clk 0:00:32.5]} 41... Kc6 {[%clk 0:00:49.5]} 42. Ke3 {[%clk 0:00:30.3]} 42...
h6 {[%clk 0:00:45.2]} 43. Kd4 {[%clk 0:00:27.4]} 43... Bd7 {[%clk 0:00:43.3]}
44. a6 {[%clk 0:00:25.5]} 44... Kd6 {[%clk 0:00:33.5]} 45. a7 {[%clk 0:00:24.3]}
45... Bc6 {[%clk 0:00:31.8]} 46. Nb6 {[%clk 0:00:24.2]} 1-0

[Event "*** SCC Grand Prix: Titled Tuesday Blitz"]
[Site "Chess.com"]
[Date "2020.08.11"]
[Round "3"]
[White "LiemLe"]
[Black "lucachess49"]
[Result "1-0"]
[WhiteElo "2957"]
[BlackElo "2452"]
[TimeControl "180+1"]
[EndTime "10:29:30 PDT"]
[Termination "LiemLe won on time"]

1. d4 {[%clk 0:03:00.9]} 1... Nf6 {[%clk 0:02:59.4]} 2. c4 {[%clk 0:03:00.4]}
2... e6 {[%clk 0:02:59.9]} 3. Nf3 {[%clk 0:03:00.1]} 3... a6 {[%clk 0:03:00.3]}
4. Nc3 {[%clk 0:02:59.6]} 4... d5 {[%clk 0:02:59.7]} 5. cxd5 {[%clk 0:02:58.5]}
5... exd5 {[%clk 0:03:00.6]} 6. Bg5 {[%clk 0:02:58.8]} 6... Be6 {[%clk
0:03:01.2]} 7. Bxf6 {[%clk 0:02:59.3]} 7... Qxf6 {[%clk 0:02:58]} 8. Qb3 {[%clk
0:02:59.7]} 8... b5 {[%clk 0:02:57.9]} 9. Nxd5 {[%clk 0:02:52.9]} 9... Qd8
{[%clk 0:02:57.5]} 10. e4 {[%clk 0:02:53.2]} 10... c6 {[%clk 0:02:57.6]} 11. Qe3
{[%clk 0:02:53.7]} 11... cxd5 {[%clk 0:02:56.3]} 12. exd5 {[%clk 0:02:54.6]}
12... Qxd5 {[%clk 0:02:55.6]} 13. Bd3 {[%clk 0:02:34.4]} 13... Bb4+ {[%clk
0:02:52.7]} 14. Kd1 {[%clk 0:02:24.8]} 14... Qd6 {[%clk 0:02:06.1]} 15. Rc1
{[%clk 0:01:53.3]} 15... Nd7 {[%clk 0:01:42]} 16. Be4 {[%clk 0:01:42.7]} 16...
Rd8 {[%clk 0:01:22.2]} 17. Rc6 {[%clk 0:01:42]} 17... Qe7 {[%clk 0:01:17.3]} 18.
Rxa6 {[%clk 0:01:27.9]} 18... O-O {[%clk 0:00:50.6]} 19. Kc2 {[%clk 0:01:25.7]}
19... Nf6 {[%clk 0:00:42.3]} 20. Bd3 {[%clk 0:01:25.4]} 20... Qb7 {[%clk
0:00:29.7]} 21. Rxe6 {[%clk 0:01:22.5]} 21... fxe6 {[%clk 0:00:30.6]} 22. Qxe6+
{[%clk 0:01:22.6]} 22... Kh8 {[%clk 0:00:31]} 23. Kb1 {[%clk 0:01:21.6]} 23...
Qf7 {[%clk 0:00:27.8]} 24. Qh3 {[%clk 0:01:20.2]} 24... Ra8 {[%clk 0:00:26.9]}
25. b3 {[%clk 0:01:13.9]} 25... h6 {[%clk 0:00:24.1]} 26. Ne5 {[%clk 0:01:12.5]}
26... Qd5 {[%clk 0:00:22.2]} 27. Ng6+ {[%clk 0:01:12.1]} 27... Kg8 {[%clk
0:00:20]} 28. Nxf8 {[%clk 0:01:09.6]} 28... Rxf8 {[%clk 0:00:20.9]} 29. Rd1
{[%clk 0:01:04.9]} 29... Ra8 {[%clk 0:00:15.4]} 30. Bf5 {[%clk 0:01:02]} 30...
Qd6 {[%clk 0:00:14.4]} 31. Qd3 {[%clk 0:00:55]} 31... Qa6 {[%clk 0:00:12.4]} 32.
Qe2 {[%clk 0:00:53.3]} 32... Ba3 {[%clk 0:00:12]} 33. Qe6+ {[%clk 0:00:50.8]}
33... Qxe6 {[%clk 0:00:11.2]} 34. Bxe6+ {[%clk 0:00:51.7]} 34... Kf8 {[%clk
0:00:09.7]} 35. Kc2 {[%clk 0:00:51.9]} 35... Ke7 {[%clk 0:00:09.9]} 36. Bf5
{[%clk 0:00:48.1]} 36... Kd6 {[%clk 0:00:10.2]} 37. Kd3 {[%clk 0:00:48]} 37...
Nd5 {[%clk 0:00:09.7]} 38. Be4 {[%clk 0:00:46]} 38... Nb4+ {[%clk 0:00:09.4]}
39. Kd2 {[%clk 0:00:43.6]} 39... Rc8 {[%clk 0:00:09.9]} 40. Ke3 {[%clk
0:00:36.1]} 40... Nxa2 {[%clk 0:00:07.9]} 41. Ra1 {[%clk 0:00:35.3]} 41... Bc1+
{[%clk 0:00:08.1]} 42. Kf3 {[%clk 0:00:35]} 42... Nc3 {[%clk 0:00:08]} 43. Ra6+
{[%clk 0:00:34.7]} 43... Kd7 {[%clk 0:00:08.1]} 44. Bf5+ {[%clk 0:00:34.2]}
44... Kd8 {[%clk 0:00:08.3]} 45. Bxc8 {[%clk 0:00:35.1]} 45... Kxc8 {[%clk
0:00:08.9]} 46. Rc6+ {[%clk 0:00:35.3]} 1-0

[Event "*** SCC Grand Prix: Titled Tuesday Blitz"]
[Site "Chess.com"]
[Date "2020.08.11"]
[Round "3"]
[White "BjarkeSahl"]
[Black "Ariadna_Atreides"]
[Result "1-0"]
[WhiteElo "2288"]
[BlackElo "2027"]
[TimeControl "180+1"]
[EndTime "10:29:30 PDT"]
[Termination "BjarkeSahl won on time"]

1. Nf3 {[%clk 0:03:00.1]} 1... d5 {[%clk 0:02:59.3]} 2. g3 {[%clk 0:02:59.9]}
2... Nf6 {[%clk 0:02:58.5]} 3. Bg2 {[%clk 0:03:00.4]} 3... c6 {[%clk 0:02:58.8]}
4. O-O {[%clk 0:03:01]} 4... Bg4 {[%clk 0:02:58]} 5. b3 {[%clk 0:03:01]} 5...
Nbd7 {[%clk 0:02:54.1]} 6. d4 {[%clk 0:02:59.9]} 6... e6 {[%clk 0:02:50.3]} 7.
c4 {[%clk 0:02:58.6]} 7... Be7 {[%clk 0:02:46.8]} 8. Bb2 {[%clk 0:02:57.4]} 8...
O-O {[%clk 0:02:44]} 9. Nc3 {[%clk 0:02:57.2]} 9... Ne4 {[%clk 0:02:10]} 10. Nd2
{[%clk 0:02:31.2]} 10... Nxc3 {[%clk 0:01:58.8]} 11. Bxc3 {[%clk 0:02:30.3]}
11... f5 {[%clk 0:01:58.7]} 12. Qc2 {[%clk 0:02:12.6]} 12... Nf6 {[%clk
0:01:56.1]} 13. f3 {[%clk 0:02:12.4]} 13... Bh5 {[%clk 0:01:55.5]} 14. e4 {[%clk
0:02:12.3]} 14... fxe4 {[%clk 0:01:46]} 15. fxe4 {[%clk 0:02:10.4]} 15... Bg6
{[%clk 0:01:44.7]} 16. Rae1 {[%clk 0:02:10.7]} 16... c5 {[%clk 0:01:17.6]} 17.
Qb2 {[%clk 0:02:05.9]} 17... Qb6 {[%clk 0:00:51.8]} 18. exd5 {[%clk 0:01:31.7]}
18... cxd4 {[%clk 0:00:50.6]} 19. Bxd4 {[%clk 0:01:30.6]} 19... Bc5 {[%clk
0:00:50.6]} 20. Bxc5 {[%clk 0:01:17.9]} 20... Qxc5+ {[%clk 0:00:49.9]} 21. Kh1
{[%clk 0:01:17.5]} 21... exd5 {[%clk 0:00:31.1]} 22. b4 {[%clk 0:01:01.6]} 22...
Qd6 {[%clk 0:00:13.9]} 23. cxd5 {[%clk 0:01:00.8]} 23... Nxd5 {[%clk 0:00:07.8]}
24. Rxf8+ {[%clk 0:00:58.1]} 24... Rxf8 {[%clk 0:00:06.8]} 25. Qd4 {[%clk
0:00:58.5]} 25... Rd8 {[%clk 0:00:05.8]} 26. Nc4 {[%clk 0:00:47.5]} 26... Qd7
{[%clk 0:00:03.9]} 27. Ne5 {[%clk 0:00:38.8]} 27... Qd6 {[%clk 0:00:03.7]} 28.
Nxg6 {[%clk 0:00:32.5]} 28... hxg6 {[%clk 0:00:04.6]} 29. Rd1 {[%clk 0:00:33]}
29... Re8 {[%clk 0:00:03]} 30. Qxd5+ {[%clk 0:00:32.3]} 30... Qxd5 {[%clk
0:00:02.7]} 31. Bxd5+ {[%clk 0:00:31.9]} 31... Kf8 {[%clk 0:00:02.8]} 32. Bxb7
{[%clk 0:00:31.9]} 32... Re2 {[%clk 0:00:02.3]} 33. Bd5 {[%clk 0:00:30.2]} 33...
Rb2 {[%clk 0:00:01.1]} 34. Bb3 {[%clk 0:00:30.4]} 1-0

[Event "*** SCC Grand Prix: Titled Tuesday Blitz"]
[Site "Chess.com"]
[Date "2020.08.11"]
[Round "3"]
[White "Rainmond"]
[Black "NoboaKevin1999"]
[Result "1-0"]
[WhiteElo "2679"]
[BlackElo "2417"]
[TimeControl "180+1"]
[EndTime "10:29:32 PDT"]
[Termination "Rainmond won on time"]

1. e4 {[%clk 0:02:48.5]} 1... e6 {[%clk 0:02:58.4]} 2. d4 {[%clk 0:02:48.7]}
2... d5 {[%clk 0:02:57.5]} 3. Nd2 {[%clk 0:02:49.6]} 3... c5 {[%clk 0:02:56.4]}
4. Ngf3 {[%clk 0:02:49.3]} 4... Nc6 {[%clk 0:02:55.2]} 5. exd5 {[%clk
0:02:47.9]} 5... exd5 {[%clk 0:02:53.9]} 6. Bb5 {[%clk 0:02:48.1]} 6... Qe7+
{[%clk 0:02:53]} 7. Qe2 {[%clk 0:02:46.8]} 7... Qxe2+ {[%clk 0:02:52.4]} 8. Kxe2
{[%clk 0:02:47.7]} 8... cxd4 {[%clk 0:02:45.9]} 9. Nxd4 {[%clk 0:02:47.4]} 9...
Bd7 {[%clk 0:02:44.7]} 10. N2b3 {[%clk 0:02:47.5]} 10... O-O-O {[%clk
0:02:40.2]} 11. Be3 {[%clk 0:02:46.8]} 11... Nf6 {[%clk 0:02:37]} 12. Nxc6
{[%clk 0:02:44.9]} 12... bxc6 {[%clk 0:02:37.5]} 13. Ba6+ {[%clk 0:02:45]} 13...
Kb8 {[%clk 0:02:37.5]} 14. Rhd1 {[%clk 0:02:42.6]} 14... Bd6 {[%clk 0:02:36.9]}
15. h3 {[%clk 0:02:41.6]} 15... Rhe8 {[%clk 0:02:36.8]} 16. Kf1 {[%clk
0:02:41.8]} 16... Bc8 {[%clk 0:02:34.8]} 17. Bd3 {[%clk 0:02:40.6]} 17... Ne4
{[%clk 0:02:28.7]} 18. c3 {[%clk 0:02:37.2]} 18... h6 {[%clk 0:02:24.2]} 19. Bd4
{[%clk 0:02:31.8]} 19... f6 {[%clk 0:02:21.7]} 20. f3 {[%clk 0:02:31.9]} 20...
Ng5 {[%clk 0:02:20.1]} 21. Bg6 {[%clk 0:02:28.4]} 21... Re7 {[%clk 0:02:16.7]}
22. Re1 {[%clk 0:02:28.5]} 22... Ne6 {[%clk 0:02:15.1]} 23. Bf2 {[%clk
0:02:27.5]} 23... Nf4 {[%clk 0:02:14.1]} 24. Rxe7 {[%clk 0:02:19.2]} 24... Bxe7
{[%clk 0:02:15]} 25. Bc2 {[%clk 0:02:20.1]} 25... Bd6 {[%clk 0:02:13.5]} 26. Re1
{[%clk 0:02:20]} 26... g5 {[%clk 0:02:12]} 27. h4 {[%clk 0:02:18.9]} 27... Ba6+
{[%clk 0:02:06.1]} 28. Kg1 {[%clk 0:02:17.6]} 28... Bd3 {[%clk 0:01:58.7]} 29.
Bd1 {[%clk 0:02:08.5]} 29... Bc7 {[%clk 0:01:53.8]} 30. Nd4 {[%clk 0:02:03.3]}
30... Kb7 {[%clk 0:01:49]} 31. Ne6 {[%clk 0:02:02.9]} 31... Nxe6 {[%clk
0:01:48]} 32. Rxe6 {[%clk 0:02:03.8]} 32... Be5 {[%clk 0:01:47.4]} 33. Re7+
{[%clk 0:02:00.6]} 33... Bc7 {[%clk 0:01:44.5]} 34. Bg3 {[%clk 0:01:54.1]} 34...
Rc8 {[%clk 0:01:35.8]} 35. Kf2 {[%clk 0:01:30]} 35... Kb6 {[%clk 0:01:33.8]} 36.
Re6 {[%clk 0:01:27.9]} 36... Bxg3+ {[%clk 0:01:30.3]} 37. Kxg3 {[%clk
0:01:28.1]} 37... Rf8 {[%clk 0:01:29.4]} 38. Ba4 {[%clk 0:01:27.5]} 38... Bb5
{[%clk 0:01:24]} 39. Bxb5 {[%clk 0:01:27.7]} 39... Kxb5 {[%clk 0:01:22.5]} 40.
Kg4 {[%clk 0:01:28.6]} 40... f5+ {[%clk 0:01:20.2]} 41. Kh5 {[%clk 0:01:28]}
41... g4 {[%clk 0:01:07.5]} 42. f4 {[%clk 0:01:26.3]} 42... c5 {[%clk
0:01:05.1]} 43. b3 {[%clk 0:01:16.7]} 43... d4 {[%clk 0:01:00.8]} 44. a4+ {[%clk
0:01:16.5]} 44... Ka5 {[%clk 0:00:57.6]} 45. Re5 {[%clk 0:01:14.4]} 45... d3
{[%clk 0:00:54.5]} 46. Rxc5+ {[%clk 0:01:13.9]} 46... Kb6 {[%clk 0:00:53]} 47.
Rd5 {[%clk 0:01:14.8]} 1-0

[Event "*** SCC Grand Prix: Titled Tuesday Blitz"]
[Site "Chess.com"]
[Date "2020.08.11"]
[Round "3"]
[White "1stSecond"]
[Black "Alexsur1981"]
[Result "0-1"]
[WhiteElo "2772"]
[BlackElo "2554"]
[TimeControl "180+1"]
[EndTime "10:29:34 PDT"]
[Termination "Alexsur1981 won on time"]

1. c4 {[%clk 0:03:00.9]} 1... e6 {[%clk 0:02:57.6]} 2. Nc3 {[%clk 0:03:00]} 2...
d5 {[%clk 0:02:58.1]} 3. d4 {[%clk 0:03:00]} 3... c6 {[%clk 0:02:57.9]} 4. e3
{[%clk 0:02:58]} 4... f5 {[%clk 0:02:57.9]} 5. h3 {[%clk 0:02:57.5]} 5... Nf6
{[%clk 0:02:57.4]} 6. g4 {[%clk 0:02:57.9]} 6... Ne4 {[%clk 0:02:52.1]} 7. Nf3
{[%clk 0:02:52.8]} 7... Bb4 {[%clk 0:02:39.8]} 8. Qb3 {[%clk 0:02:51.6]} 8...
Bxc3+ {[%clk 0:02:34]} 9. bxc3 {[%clk 0:02:52.5]} 9... fxg4 {[%clk 0:02:33]} 10.
hxg4 {[%clk 0:02:51.9]} 10... O-O {[%clk 0:02:33.1]} 11. Be2 {[%clk 0:02:52]}
11... b5 {[%clk 0:02:08.7]} 12. cxb5 {[%clk 0:02:47.5]} 12... cxb5 {[%clk
0:02:08.7]} 13. Ba3 {[%clk 0:02:47.9]} 13... Rf7 {[%clk 0:02:05.8]} 14. g5
{[%clk 0:02:32.2]} 14... g6 {[%clk 0:01:54.1]} 15. Rf1 {[%clk 0:01:37.4]} 15...
Nc6 {[%clk 0:01:51.8]} 16. Nd2 {[%clk 0:01:32.3]} 16... Na5 {[%clk 0:01:46]} 17.
Qb4 {[%clk 0:01:25]} 17... Nxd2 {[%clk 0:01:33.1]} 18. Kxd2 {[%clk 0:01:25.9]}
18... a6 {[%clk 0:01:30.4]} 19. f4 {[%clk 0:01:21.6]} 19... Nc4+ {[%clk
0:01:25.3]} 20. Bxc4 {[%clk 0:01:21.2]} 20... dxc4 {[%clk 0:01:26.2]} 21. e4
{[%clk 0:01:21.3]} 21... Bb7 {[%clk 0:01:23.5]} 22. Ke3 {[%clk 0:01:17.9]} 22...
e5 {[%clk 0:01:16.6]} 23. d5 {[%clk 0:00:57.6]} 23... exf4+ {[%clk 0:01:14.7]}
24. Rxf4 {[%clk 0:00:55.2]} 24... Qxg5 {[%clk 0:01:13.9]} 25. Rf1 {[%clk
0:00:55.2]} 25... Bxd5 {[%clk 0:01:02.5]} 26. Qc5 {[%clk 0:00:31.8]} 26... Re8
{[%clk 0:01:02.3]} 27. Qd4 {[%clk 0:00:04.2]} 27... Rxe4+ {[%clk 0:00:53.9]} 28.
Qxe4 {[%clk 0:00:05.1]} 28... Bxe4 {[%clk 0:00:54.7]} 29. Kxe4 {[%clk
0:00:05.7]} 29... Rxf4+ {[%clk 0:00:54.8]} 30. Rxf4 {[%clk 0:00:06.6]} 30...
Qg2+ {[%clk 0:00:53]} 31. Ke5 {[%clk 0:00:05.6]} 31... Qxa2 {[%clk 0:00:47.5]}
32. Bc5 {[%clk 0:00:05.1]} 32... Qe2+ {[%clk 0:00:42.5]} 33. Kf6 {[%clk
0:00:04.3]} 33... Qe8 {[%clk 0:00:32]} 34. Bd6 {[%clk 0:00:04.3]} 34... a5
{[%clk 0:00:22.9]} 35. Be7 {[%clk 0:00:02.1]} 35... b4 {[%clk 0:00:20.8]} 36.
Bd6 {[%clk 0:00:01.1]} 36... b3 {[%clk 0:00:20.3]} 0-1